lending/lending_fUSD_20240131
["ID","MTS","AMOUNT","RATE_DAILY","PERIOD"]
[313044841,1706687432119,-677.95451397,0.00037896,4]
[313044842,1706687432134,-6786.0,0.00037896,4]
[313044843,1706687432162,-1460.75587726,0.00037896,4]
[313044844,1706687432173,-333.00815705,0.00037896,4]
[313044845,1706687432184,-6699.0657323,0.00037896,4]
[313044846,1706687432197,-2547.93659347,0.00037896,4]
[313044847,1706687432245,-2172.92551066,0.00037896,4]
[313044848,1706687437945,-276.57178118,0.00037896,4]
[313044849,1706687438002,-858.74623956,0.00037896,4]
[313044850,1706687438225,-390.83555484,0.00037896,4]
[313044851,1706687438237,-460.89873219,0.00037896,4]
[313044852,1706687438248,-2145.76887824,0.00037896,4]
[313044853,1706687438272,-253.89399304,0.00037896,4]
[313044854,1706687438289,-462.2961555,0.00037896,4]
[313044898,1706687438731,-4330.51814004,0.00037896,4]
[313044900,1706687438740,-155.7231014,0.00037897,4]
[313044902,1706687438750,-281.66981633,0.00037897,4]
[313044904,1706687438759,-156.11983464,0.00037897,4]
[313044906,1706687438768,-155.9650335,0.00037897,4]
[313044908,1706687438778,-269.71097247,0.00037897,4]
[313044910,1706687438787,-628.30579649,0.00037897,4]
[313044912,1706687438797,-239.92187767,0.00037897,2]
[313044914,1706687438806,-283.75575974,0.00037897,4]
[313044916,1706687438815,-7126.57464017,0.00037897,2]
[313044919,1706687438828,-155.84690732,0.00037897,4]
[313044921,1706687438838,-312.07222186,0.00037897,4]
[313044923,1706687438848,-524.28228198,0.00037897,4]
[313044925,1706687438858,-178.72127769,0.00037897,4]
[313044927,1706687438867,-248.98694023,0.00037897,4]
[313044928,1706687438877,-1048.28635536,0.00037897,4]
[313044929,1706687438887,-285.72144979,0.00037897,4]
[313044930,1706687438898,-355.01316218,0.00037897,2]
[313044931,1706687438908,-8530.77204011,0.00037897,4]
[313044932,1706687438917,-4642.46202328,0.00037897,4]
[313044933,1706687438927,-463.32371698,0.00037897,4]
[313044934,1706687438936,-155.75501676,0.00037897,4]
[313044935,1706687438945,-206.12359319,0.00037897,4]
[313044936,1706687438956,-250.0757698,0.00037897,4]
[313044938,1706687438966,-1760.0703283,0.00037897,2]
[313044940,1706687438976,-500.0,0.00037897,4]
[313044942,1706687438985,-155.0,0.00037898,4]
[313044944,1706687438994,-1157.75991458,0.00037898,4]
[313044946,1706687439003,-314.93603,0.00037898,2]
[313044948,1706687439013,-95961.6074751,0.00037899,2]
[313044950,1706687439022,-1036.53749454,0.000379,3]
[313044952,1706687439032,-151.0131,0.00037948,6]
[313044954,1706687439042,-575.11,0.00037971,2]
[313044956,1706687439052,-150.0,0.00038,7]
[313044958,1706687439061,-151.0131,0.00038048,6]
[313044960,1706687439070,-686.60735281,0.00038083,2]
[313044962,1706687439080,-200.0,0.00038141,5]
[313044964,1706687439089,-151.0131,0.00038148,8]
[313044966,1706687439098,-505.5935783,0.000382,2]
[313044968,1706687439107,-151.0131,0.00038248,6]
[313044970,1706687439117,-151.0131,0.00038348,6]
[313044972,1706687439126,-150.74,0.00038362,5]
[313044974,1706687439135,-150.17,0.00038363,5]
[313044976,1706687439144,-1783.49,0.00038368,5]
[313044978,1706687439153,-151.0131,0.00038448,8]
[313044981,1706687439166,-167.04484321,0.000385,2]
[313044983,1706687439175,-152.72,0.00038536,5]
[313044985,1706687439185,-151.0131,0.00038548,8]
[313044987,1706687439195,-151.0131,0.00038648,8]
[313044989,1706687439205,-213.0,0.00038669,5]
[313044991,1706687439214,-153.64125112,0.00038722,2]
[313044993,1706687439223,-151.0131,0.00038748,8]
[313044995,1706687439233,-407.5349,0.00038754,2]
[313044997,1706687439242,-150.0,0.00038762,2]
[313044999,1706687439251,-150.0,0.00038766,2]
[313045001,1706687439260,-194.65996241,0.00038783,2]
[313045003,1706687439270,-17558.16047558,0.000388,4]
[313045005,1706687439279,-1000.0,0.000388,2]
[313045007,1706687439289,-150.0,0.00038801,2]
[313045009,1706687439298,-150.0,0.00038809,2]
[313045011,1706687439307,-150.0,0.00038813,2]
[313045013,1706687439316,-302.63597908,0.00038835,2]
[313045015,1706687439326,-150.0,0.00038839,2]
[313045017,1706687439336,-150.0,0.00038854,2]
[313045019,1706687439345,-150.0,0.00038862,2]
[313045021,1706687439355,-4261.59400444,0.0003888,2]
[313045023,1706687439364,-150.0,0.00038884,2]
[313045025,1706687439373,-150.0,0.00038889,2]
[313045027,1706687439382,-1000.0,0.000389,2]
[313045029,1706687439391,-150.0,0.00038929,2]
[313045031,1706687439401,-150.0,0.00038933,2]
[313045033,1706687439410,-150.0,0.00038953,2]
[313045036,1706687439419,-151.40277149,0.00038968,2]
[313045038,1706687439429,-150.0,0.00038983,2]
[313045040,1706687439438,-323.31311239,0.00038998,2]
[313045042,1706687439448,-825.27406002,0.00038999,2]
[313045044,1706687439457,-49392.99347455,0.00039,2]
[313045046,1706687439466,-621.9570935,0.00039,4]
[313045048,1706687439474,-1432.47857544,0.00039,2]
[313045050,1706687439483,-489.73817224,0.00039,4]
[313045052,1706687439496,-10000.0,0.00039,7]
[313045054,1706687439505,-1978.828323,0.00039,10]
[313045056,1706687439515,-2014.7,0.00039,2]
[313045058,1706687439524,-1423.310322,0.00039,24]
[313045060,1706687439534,-208.0,0.00039,2]
[313045062,1706687439544,-502.8725936,0.00039026,2]
[313045064,1706687439553,-3462.9353986,0.00039053,2]
[313045066,1706687439563,-4261.59400439,0.00039144,2]
[313045068,1706687439573,-151.0131,0.00039148,8]
[313045071,1706687439583,-264.72453,0.000392,28]
[313045073,1706687439593,-800.0,0.0003926,2]
[313045075,1706687439604,-151.0131,0.00039448,8]
[313045077,1706687439613,-3246.60544685,0.000395,2]
[313045079,1706687439622,-575.11,0.00039615,2]
[313045081,1706687439632,-462.0,0.000397,5]
[313045083,1706687439641,-200.0,0.000397,7]
[313045085,1706687439651,-152.0,0.00039718,4]
[313045087,1706687439661,-151.0131,0.00039748,8]
[313045089,1706687439670,-900.0,0.000398,14]
[313045091,1706687439679,-11374.0381208,0.00039855,10]
[313045093,1706687439688,-28911.65365555,0.00039865,2]
[313045128,1706687439939,-1109.2339416,0.00039865,2]
[313045206,1706687440615,-536.594,0.00039865,2]
[313045251,1706687441374,-301.83419736,0.00039865,2]
[313045252,1706687441386,-467.6094225,0.00039865,2]
[313045253,1706687441398,-804.29,0.00039865,2]
[313045254,1706687441409,-51233.96374962,0.00039865,2]
[313045255,1706687441419,-1421.7547651,0.00039879,10]
[313045256,1706687441428,-2000.0,0.00039889,4]
[313045257,1706687441438,-1779.39089631,0.0003989,13]
[313045258,1706687441447,-5687.0190604,0.0003989,10]
[313045259,1706687441456,-3111.3025,0.0003989,120]
[313045260,1706687441465,-350.00047153,0.000399,4]
[313045261,1706687441474,-154.97617789,0.000399,6]
[313045262,1706687441483,-1800.0,0.000399,14]
[313045264,1706687441492,-177.77473451,0.000399,13]
[313045266,1706687441502,-5301.04648163,0.000399,2]
[313045268,1706687441511,-134.93761844,0.000399,2]
[313045269,1706687441539,-563.36498808,0.000399,2]
[313045270,1706687441554,-4602.7438751,0.000399,2]
[313045271,1706687441563,-5301.04648162,0.000399,2]
[313045272,1706687441573,-5301.04648162,0.000399,2]
[313045273,1706687441582,-5301.04648162,0.000399,2]
[313045274,1706687441592,-4707.85915074,0.000399,2]
[313045316,1706687443107,-593.18733088,0.000399,2]
[313045317,1706687443117,-674.34896679,0.000399,2]
[313045318,1706687443164,-287.55,0.00039282,2]
[313045319,1706687443173,-1977.99595803,0.000399,2]
[313045320,1706687444104,-1026.13849919,0.000399,2]
[313045321,1706687444159,-1622.56305761,0.000399,2]
[313045322,1706687444168,-5301.04648162,0.000399,2]
[313045323,1706687444177,-5301.04648162,0.000399,2]
[313045324,1706687444186,-5301.04648162,0.000399,2]
[313045325,1706687444196,-5301.04648162,0.000399,2]
[313045326,1706687444205,-5301.04648162,0.000399,2]
[313045327,1706687444215,-1421.7547651,0.00039953,10]
[313045328,1706687444225,-2839.5994085,0.00039963,2]
[313045329,1706687444234,-502.8725936,0.00039963,2]
[313045330,1706687444244,-15639.3024161,0.0003997,10]
[313045331,1706687444254,-81461.0160555,0.0003998,6]
[313045332,1706687444263,-29727.64735778,0.0003998,6]
[313045333,1706687444275,-9224.23970759,0.0003998,6]
[313045334,1706687444287,-3544.20379313,0.0003998,6]
[313045335,1706687444298,-2791.33274767,0.0003998,6]
[313045336,1706687446022,-3630.89559164,0.0003998,6]
[313045337,1706687446034,-827.63640438,0.0003998,6]
[313045338,1706687446079,-2618.79815569,0.0003998,6]
[313045339,1706687446278,-654.57000082,0.0003998,6]
[313045340,1706687446289,-3310.93377146,0.0003998,6]
[313045343,1706687446476,-1768.46075324,0.0003998,6]
[313045344,1706687446487,-446.11217539,0.0003998,6]
[313045345,1706687446504,-24288.98618757,0.0003998,6]
[313045346,1706687446515,-15039.63820285,0.0003998,6]
[313045347,1706687446539,-322.8916,0.0003998,6]
[313045348,1706687446551,-8053.10888027,0.0003998,6]
[313045349,1706687446583,-1108.87164166,0.0003998,6]
[313045350,1706687469688,4981.93100772,0.00023,2]
[313045351,1706687469717,29823.07,0.00023,2]
[313045352,1706687513962,9153.0,0.00022668,2]
[313045355,1706688122909,479.01122374,0.000226,2]
[313045356,1706688302360,189.81833792,0.00022568,2]
[313045357,1706688434099,-500.0,0.00022659,2]
[313045358,1706688434120,-691.30186984,0.0002266,2]
[313045359,1706688434139,-165.0,0.00022662,2]
[313045360,1706688434160,-1431.72198165,0.00022667,2]
[313045376,1706688632171,-500.0,0.00022666,2]
[313045377,1706688632181,-1709.59114363,0.00022667,2]
[313045378,1706688632192,-2637.53466704,0.00022667,2]
[313045379,1706688632293,-1982.0576214,0.00022667,2]
[313045380,1706688632305,-43.69652141,0.00022667,2]
[313045381,1706688632314,-806.30347859,0.00022668,2]
[313045382,1706688632346,-260.48604794,0.00022668,2]
[313045383,1706688632356,-89.51395206,0.00022998,2]
[313045384,1706688632368,-292.28273376,0.00022998,2]
[313045385,1706688632393,-308.96613566,0.00022998,2]
[313045386,1706688632403,-147.8444608,0.00022998,2]
[313045387,1706688632464,-2.1555392,0.00022998,2]
[313045388,1706688632473,-327.51158784,0.00022999,2]
[313045389,1706688632485,-2350.12751988,0.00022999,2]
[313045390,1706688632494,-7255.8754907,0.00023,2]
[313045418,1706688638141,-4396.51692642,0.00023,2]
[313045419,1706688638198,-725.36084865,0.00023,2]
[313045420,1706688638212,-741.27723955,0.00023,2]
[313045421,1706688638224,-420.8888349,0.00023,2]
[313045422,1706688638370,-2117.06497632,0.00023,2]
[313045423,1706688638419,-2333.36605109,0.00023,2]
[313045424,1706688638477,-491.64613668,0.00023,2]
[313045427,1706688640773,-122675.66911817,0.00023,2]
[313045428,1706688640782,-95658.42195659,0.00023,2]
[313045429,1706688641509,-1111.12714961,0.00023,2]
[313045437,1706688643175,-530.75948482,0.00023,2]
[313045438,1706688643187,-1001.45,0.00023,2]
[313045439,1706688643198,-1120.4,0.00023,2]
[313045440,1706688643211,-654.11619684,0.00023,2]
[313045441,1706688643223,-4886.09380316,0.00023,2]
[313045442,1706688643318,-1529.96218925,0.00023,2]
[313045444,1706688646221,-500.0,0.00022999,2]
[313045445,1706688646231,-1263.74448312,0.00023,2]
[313045446,1706688646341,-14433.36058573,0.00023,2]
[313045447,1706688646401,-45718.59301682,0.00023,2]
[313045463,1706688647940,-5750.8448532,0.00023,2]
[313045465,1706688647951,-1445.92927751,0.00023,2]
[313045469,1706688647979,-346.24935774,0.00023,2]
[313045544,1706689002554,164.34,0.00026875,120]
[313045545,1706689262393,156.04238816,0.00020696,2]
[313045546,1706689435209,1103.77529404,0.00020696,2]
[313045547,1706689447083,650.60910191,0.00020593,2]
[313045548,1706689453187,168.68331054,0.00020696,2]
[313045549,1706689513386,-358.43337229,0.00022742,2]
[313045550,1706689513407,-1641.56662771,0.00022742,2]
[313045551,1706689513984,-963.43369467,0.00022742,2]
[313045552,1706689514004,-155.0,0.00022743,2]
[313045553,1706689514025,-881.56630533,0.00022743,2]
[313045554,1706689514990,-163.04340586,0.00022743,2]
[313045555,1706689613554,-155.91971542,0.00022769,2]
[313045556,1706689613576,-158.18194824,0.00022896,2]
[313045557,1706689613597,-2605.00032238,0.00022899,2]
[313045558,1706689613620,-346.17644656,0.000229,2]
[313045559,1706689621637,-2370.97723335,0.00022993,2]
[313045560,1706689621669,-10927.78794953,0.00022994,2]
[313045561,1706689621697,-11860.72725441,0.00022995,2]
[313045562,1706689621722,-4299.25140169,0.00022996,2]
[313045563,1706689621743,-2148.48025795,0.00022996,2]
[313045564,1706689621764,-280.43561941,0.00022996,2]
[313045565,1706689621784,-231.01969335,0.00022996,2]
[313045566,1706689621804,-155.2393239,0.00022996,2]
[313045567,1706689621823,-155.80220478,0.00022996,2]
[313045568,1706689622187,-220.56378589,0.00022996,2]
[313045569,1706689622209,-1076.63480585,0.00022996,2]
[313045570,1706689622230,-291.76670973,0.00022996,2]
[313045571,1706689622250,-363.51283794,0.00022996,2]
[313045572,1706689622270,-2339.54293723,0.00022996,2]
[313045573,1706689622290,-285.40187788,0.00022996,2]
[313045574,1706689622309,-1881.08121382,0.00022996,2]
[313045575,1706689622330,-3313.10843042,0.00022996,2]
[313045576,1706689622349,-1264.13989556,0.00022996,2]
[313045577,1706689622369,-1585.42357778,0.00022996,2]
[313045578,1706689622390,-199.6344335,0.00022996,2]
[313045579,1706689622410,-112.36056177,0.00022996,2]
[313045580,1706689712424,175.05,0.00022163,2]
[313045581,1706689752151,-619.12907045,0.00022896,2]
[313045582,1706689752172,-302.90439074,0.000229,2]
[313045583,1706689752193,-43.27409095,0.00022996,2]
[313045584,1706689752214,-953.06451415,0.00022996,2]
[313045585,1706689752234,-417.70149729,0.00022996,2]
[313045586,1706689752255,-155.38006374,0.00022997,2]
[313045587,1706689752276,-155.68426405,0.00022997,2]
[313045588,1706689752295,-252.22767499,0.00022997,2]
[313045589,1706689752316,-161.68198306,0.00022998,2]
[313045590,1706689752337,-5221.14240979,0.00022998,2]
[313045591,1706689752357,-155.25688774,0.00022998,2]
[313045592,1706689752378,-282.80177468,0.00022998,2]
[313045593,1706689752405,-156.878443,0.00022998,2]
[313045594,1706689752425,-240.17788537,0.00022998,2]
[313045595,1706689752446,-504.52526623,0.00022998,2]
[313045596,1706689752467,-367.57107337,0.00022998,2]
[313045597,1706689752488,-4550.3354244,0.00022998,2]
[313045598,1706689752510,-155.65125152,0.00022998,2]
[313045599,1706689752542,-156.22544392,0.00022998,2]
[313045600,1706689752564,-156.04531871,0.00022998,2]
[313045601,1706689752584,-1114.75212195,0.00022998,2]
[313045607,1706689792889,559.59,0.00021998,2]
[313045614,1706689832402,-142.91762908,0.00022998,2]
[313045615,1706689832411,-419.60887248,0.00022998,2]
[313045616,1706689832422,-258.04972224,0.00022998,2]
[313045617,1706689832432,-587.54554841,0.00022998,2]
[313045618,1706689832441,-526.38219752,0.00022998,2]
[313045619,1706689832450,-280.65619007,0.00022998,2]
[313045620,1706689832460,-2645.26634176,0.00022998,2]
[313045621,1706689832511,-482.22900367,0.00022998,2]
[313045622,1706689832571,-583.91511159,0.00022998,2]
[313045623,1706689832584,-1119.7811972,0.00022998,2]
[313045624,1706689832594,-204.6530555,0.00022998,2]
[313045625,1706689832604,-162.40501742,0.00022998,2]
[313045626,1706689832614,-308.46589809,0.00022998,2]
[313045627,1706689832624,-5223.42901236,0.00022998,2]
[313045642,1706689838508,-5362.99309402,0.00022998,2]
[313045643,1706689838518,-298.05134141,0.00022998,2]
[313045644,1706689838527,-155.35242651,0.00022998,2]
[313045645,1706689838537,-155.39275973,0.00022998,2]
[313045646,1706689838546,-931.42777249,0.00022998,2]
[313045647,1706689838555,-157.78864269,0.00022998,2]
[313045648,1706689838565,-155.97601799,0.00022998,2]
[313045649,1706689838575,-494.25247105,0.00022998,2]
[313045650,1706689838584,-192.00661234,0.00022998,2]
[313045651,1706689838594,-157.5468824,0.00022998,2]
[313045652,1706689838603,-1046.62349539,0.00022998,2]
[313045653,1706689838612,-319.88281426,0.00022998,2]
[313045654,1706689838621,-354.78394109,0.00022998,2]
[313045655,1706689838630,-165.4809419,0.00022998,2]
[313045656,1706689838640,-527.29632574,0.00022998,2]
[313045657,1706689838649,-244.64514371,0.00022998,2]
[313045658,1706689838658,-223.33377223,0.00022998,2]
[313045659,1706689838668,-155.75950423,0.00022998,2]
[313045660,1706689838680,-263.7290691,0.00022998,2]
[313045661,1706689838689,-313.82257928,0.00022998,2]
[313045662,1706689838698,-3148.06260981,0.00022998,2]
[313045663,1706689838707,-155.43434131,0.00022998,2]
[313045664,1706689838716,-3059.7339249,0.00022998,2]
[313045665,1706689838726,-155.83608828,0.00022998,2]
[313045666,1706689838735,-172.84427884,0.00022998,2]
[313045667,1706689838745,-400.0,0.00022998,2]
[313045668,1706689838755,-155.55300753,0.00022998,2]
[313045669,1706689838764,-177.97223727,0.00022998,2]
[313045670,1706689838773,-201.24812279,0.00022998,2]
[313045671,1706689838783,-1801.6481534,0.00022998,2]
[313045672,1706689838802,-443.83778674,0.00022998,2]
[313045673,1706689838813,-3227.0283782,0.00022998,2]
[313045674,1706689838822,-179.6919451,0.00022998,2]
[313045675,1706689838832,-337.76205171,0.00022998,2]
[313045676,1706689838841,-481.69275539,0.00022998,2]
[313045677,1706689838851,-1474.64961538,0.00022998,2]
[313045678,1706689838999,-534.94030156,0.00022998,2]
[313045679,1706689839011,-2618.53507363,0.00022998,2]
[313045680,1706689839020,-1000.0,0.00022998,2]
[313045681,1706689839029,-700.81105378,0.00022998,2]
[313045683,1706689839038,-3672.18134384,0.00022998,2]
[313045687,1706689839074,-1859.67759079,0.00022998,2]
[313045689,1706689839086,-2137.91723235,0.00022998,2]
[313045691,1706689839095,-501.41289716,0.00022998,2]
[313045693,1706689839104,-155.65130316,0.00022998,2]
[313045694,1706689839113,-156.52578736,0.00022998,2]
[313045695,1706689839122,-543.55682798,0.00022998,2]
[313045696,1706689839131,-708.66915245,0.00022998,2]
[313045697,1706689839142,-333.42,0.00022998,2]
[313045698,1706689839153,-102.09814911,0.00022998,2]
[313045699,1706689839162,-199.89093944,0.00022998,2]
[313045700,1706689839171,-349.60091145,0.00022998,2]
[313045710,1706689840923,-964.82397924,0.00022998,2]
[313045716,1706689843963,-202.18313352,0.00022997,2]
[313045718,1706689843973,-390.34829731,0.00022998,2]
[313045720,1706689843985,-1627.62382073,0.00022998,2]
[313045722,1706689843994,-198.01699478,0.00022998,2]
[313045724,1706689844003,-2148.1042989,0.00022998,2]
[313045726,1706689844011,-155.42556022,0.00022998,2]
[313045728,1706689844020,-347.54797036,0.00022998,2]
[313045730,1706689844029,-155.0,0.00022998,2]
[313045731,1706689844038,-156.14756392,0.00022998,2]
[313045732,1706689844047,-155.44821257,0.00022998,2]
[313045733,1706689844056,-500.0,0.00022999,2]
[313045735,1706689844065,-33051.65465518,0.00022999,2]
[313045736,1706689844074,-124601.67454101,0.00022999,2]
[313045738,1706689844084,-499.99,0.00022999,2]
[313045740,1706689844092,-51721.60890703,0.00023,2]
[313045747,1706689844146,-10831.35450938,0.00023,2]
[313045750,1706689844159,-5735.62343533,0.00023,2]
[313045754,1706689844185,-6404.49287643,0.00023,2]
[313045756,1706689844196,-837.93466786,0.00023,2]
[313045758,1706689844207,-6743.90894464,0.00023,2]
[313045760,1706689844218,-26159.80615523,0.00023,2]
[313045763,1706689844241,-5098.84059331,0.00023,2]
[313045765,1706689844256,-635.3109952,0.00023,2]
[313045768,1706689844267,-943.24512146,0.00023,2]
[313045770,1706689844278,-1909.90824921,0.00023,2]
[313045772,1706689844289,-1051.547,0.00023,2]
[313045774,1706689844300,-373.45767937,0.00023,2]
[313045776,1706689844311,-664.00152642,0.00023,2]
[313045778,1706689844322,-1845.6291055,0.00023,2]
[313045781,1706689844341,-62706.34542653,0.00023,2]
[313045782,1706689844351,-500.0,0.00023,2]
[313045784,1706689844374,-29316.15074559,0.00023,2]
[313045785,1706689844384,-2000.0,0.00023,2]
[313045787,1706689844393,-241.08419871,0.00023,2]
[313045788,1706689844402,-559.59,0.00023642,2]
[313045789,1706689844411,-2000.0,0.00024,2]
[313045790,1706689844420,-150.31,0.00024204,2]
[313045791,1706689844429,-19438.75,0.00024682,2]
[313045792,1706689844438,-250.0,0.00024712,2]
[313045793,1706689844448,-192.02,0.00024811,2]
[313045794,1706689844457,-2000.0,0.00025,2]
[313045795,1706689844467,-910.0,0.00025062,2]
[313045796,1706689844476,-559.59,0.00025286,2]
[313045797,1706689844486,-312.83,0.00025576,2]
[313045798,1706689844495,-2000.0,0.00025734,2]
[313045799,1706689844504,-250.0,0.00025821,2]
[313045800,1706689844513,-182.19,0.00025821,10]
[313045801,1706689844522,-200.0,0.00025962,2]
[313045802,1706689844532,-2000.0,0.00026,2]
[313045803,1706689844541,-150.0,0.00026079,2]
[313045804,1706689844550,-250.0,0.0002617,2]
[313045805,1706689844559,-302.90439069,0.00026449,3]
[313045806,1706689844569,-559.59,0.0002693,2]
[313045807,1706689844578,-2000.0,0.00027,2]
[313045808,1706689844588,-150.0,0.00027535,2]
[313045809,1706689844598,-600.0,0.00027773,2]
[313045810,1706689844607,-150.31,0.00027789,2]
[313045811,1706689844616,-2000.0,0.00028,2]
[313045812,1706689844626,-910.0,0.00028195,2]
[313045813,1706689844636,-559.59,0.00028573,2]
[313045814,1706689844645,-2064.0,0.000286,2]
[313045815,1706689844655,-5299.0,0.000286,2]
[313045816,1706689844665,-2000.0,0.00029,2]
[313045817,1706689844675,-268.83625673,0.00029,2]
[313045818,1706689844686,-1000.0,0.000299,10]
[313045819,1706689844696,-302.90439069,0.00029997,4]
[313045820,1706689844705,-155.0,0.0003,2]
[313045821,1706689844714,-2000.0,0.0003,2]
[313045822,1706689844725,-651.07526847,0.0003,4]
[313045823,1706689844734,-256.77960205,0.0003,2]
[313045824,1706689844744,-369600.7907595,0.0003,2]
[313045825,1706689844753,-500.0,0.0003,2]
[313045826,1706689844763,-262.44669,0.0003,2]
[313045827,1706689844772,-262.4467,0.0003,2]
[313045828,1706689844782,-262.4467,0.0003,2]
[313045829,1706689844792,-262.4467,0.0003,2]
[313045830,1706689844801,-262.4467,0.0003,2]
[313045831,1706689844810,-559.59,0.00030217,2]
[313045832,1706689844819,-262.4467,0.0003065,2]
[313045833,1706689844829,-2000.0,0.00031,2]
[313045834,1706689844839,-910.0,0.00031328,2]
[313045836,1706689844848,-150.31,0.00031373,2]
[313045837,1706689844857,-51469.43787,0.000318,3]
[313045839,1706689844867,-2000.0,0.00032,2]
[313045841,1706689844877,-209.0,0.00032,2]
[313045844,1706689844886,-2000.0,0.00033,2]
[313045845,1706689844896,-608.24,0.00033074,2]
[313045847,1706689844905,-302.90439069,0.00033546,6]
[313045849,1706689844914,-154.97617789,0.0003356,2]
[313045851,1706689844924,-1723.873,0.00033646,2]
[313045853,1706689844933,-8229.577,0.00033646,2]
[313045854,1706689844942,-5690.11,0.00033646,2]
[313045856,1706689844951,-16208.849,0.00033646,2]
[313045858,1706689844961,-917.04,0.00033646,2]
[313045861,1706689844971,-377.641,0.00033646,2]
[313045862,1706689844980,-887.734,0.00033646,2]
[313045864,1706689844989,-1146.143,0.00033646,2]
[313045865,1706689844998,-152.953,0.00033646,2]
[313045866,1706689845008,-2000.0,0.00034,2]
[313045867,1706689845017,-150.0,0.00034419,2]
[313045868,1706689845026,-910.0,0.00034461,2]
[313045869,1706689845035,-192.02,0.00034735,2]
[313045870,1706689845045,-150.31,0.00034958,2]
[313045871,1706689845054,-2000.0,0.00035,2]
[313045872,1706689845063,-1405.75351929,0.00036,14]
[313045873,1706689845073,-2000.0,0.00036,2]
[313045874,1706689845081,-1000.0,0.000362,2]
[313045875,1706689845091,-2000.0,0.00037,2]
[313045876,1706689845101,-302.90439069,0.00037095,8]
[313045877,1706689845110,-910.0,0.00037593,2]
[313045878,1706689845120,-151.0131,0.00037648,6]
[313045879,1706689845130,-153.04,0.000377,3]
[313045880,1706689845140,-153.04,0.000377,3]
[313045881,1706689845150,-153.04,0.000377,3]
[313045882,1706689845160,-153.04,0.000377,3]
[313045883,1706689845170,-151.0131,0.00037748,6]
[313045884,1706689845179,-151.0131,0.00037848,6]
[313045885,1706689845189,-1631.10832159,0.00037848,11]
[313045886,1706689845198,-413.0,0.000379,5]
[313045887,1706689845208,-2100.0,0.000379,13]
[313045888,1706689845217,-405927.327723,0.000379,3]
[313045889,1706689845227,-151.0131,0.00037948,6]
[313045890,1706689845237,-2000.0,0.00038,2]
[313045891,1706689845246,-207.985833,0.00038,2]
[313045892,1706689845256,-151.0131,0.00038048,6]
[313045893,1706689845265,-151.0131,0.00038148,6]
[313045894,1706689845274,-151.0131,0.00038248,8]
[313045895,1706689845284,-151.0131,0.00038348,8]
[313045896,1706689845293,-151.0131,0.00038448,8]
[313045897,1706689845302,-150.31,0.00038542,2]
[313045898,1706689845312,-151.0131,0.00038548,8]
[313045899,1706689845321,-151.0131,0.00038648,8]
[313045900,1706689845330,-151.0131,0.00038748,8]
[313045901,1706689845340,-17558.16047558,0.000388,4]
[313045902,1706689845350,-151.0131,0.00038848,8]
[313045903,1706689845359,-3409.27520353,0.0003888,2]
[313045904,1706689845369,-3409.27520351,0.0003888,2]
[313045905,1706689845378,-3409.27520351,0.0003888,2]
[313045906,1706689845388,-3409.27520351,0.0003888,2]
[313045907,1706689845397,-3409.27520351,0.0003888,2]
[313045908,1706689845407,-3409.27520351,0.0003888,2]
[313045909,1706689845417,-1000.0,0.000389,2]
[313045910,1706689845426,-295.18,0.00038904,2]
[313045911,1706689845624,-1631.10832158,0.00038925,12]
[313045912,1706689845636,-151.0131,0.00038948,10]
[313045913,1706689845646,-2000.0,0.00039,2]
[313045914,1706689845656,-2010.86,0.00039,2]
[313045915,1706689845667,-353.22,0.00039,2]
[313045916,1706689845678,-151.0131,0.00039048,10]
[313045917,1706689845692,-151.0131,0.00039148,10]
[313045918,1706689845702,-150.0,0.000392,24]
[313045919,1706689845712,-151.0131,0.00039248,10]
[313045920,1706689845723,-640.0,0.0003926,2]
[313045921,1706689845733,-150.48824094,0.00039306,2]
[313045922,1706689845743,-151.0131,0.00039348,10]
[313045923,1706689845754,-151.0131,0.00039448,10]
[313045924,1706689845763,-5207.16021376,0.000395,7]